bitfinex-derivatives/quotes_BTCF0:USTF0_20250827
["timestamp","ask_amount","ask_price","bid_price","bid_amount"]
[1756337799910,0.97179252,111250.0,111240.0,0.82948]
[1756337801215,0.97179252,111250.0,111240.0,0.83048]
[1756337801514,0.97179252,111250.0,111240.0,0.001]
[1756337801914,0.93179252,111250.0,111240.0,0.001]
[1756337802418,0.59179252,111250.0,111240.0,0.001]
[1756337802617,0.59179252,111250.0,111240.0,0.12842]
[1756337802811,0.91179252,111250.0,111240.0,0.12842]
[1756337803013,0.91179252,111250.0,111240.0,0.001]
[1756337803817,0.59876438,111250.0,111240.0,0.0998]
[1756337804011,0.59876438,111250.0,111240.0,0.1562]
[1756337804315,0.91179252,111250.0,111240.0,0.1562]
[1756337804516,0.91179252,111250.0,111240.0,0.12842]
[1756337804915,0.91179252,111250.0,111240.0,0.001]
[1756337805118,0.91176193,111250.0,111240.0,0.001]
[1756337807319,0.59873379,111250.0,111240.0,0.12842]
[1756337807518,0.91176193,111250.0,111240.0,0.12842]
[1756337808117,0.91176193,111250.0,111240.0,0.0998]
[1756337808316,0.91176193,111250.0,111240.0,0.12842]
[1756337808515,0.91176193,111250.0,111240.0,0.0998]
[1756337808716,0.91176193,111250.0,111240.0,0.12842]
[1756337809112,0.91176193,111250.0,111240.0,0.0998]
[1756337809320,0.91176193,111250.0,111240.0,0.05652]
[1756337809819,0.91176193,111250.0,111240.0,0.0998]
[1756337811519,0.91176193,111250.0,111240.0,0.001]
[1756337811920,1.16176193,111250.0,111240.0,0.001]
[1756337812423,0.56475794,111240.0,111230.0,0.82966]
[1756337812615,0.91176983,111240.0,111230.0,0.82956]
[1756337813115,0.2517379,111230.0,111220.0,0.89518]
[1756337813315,0.2517379,111230.0,111220.0,0.92836]
[1756337813316,0.95177793,111230.0,111220.0,0.92836]
[1756337814014,0.95177793,111230.0,111220.0,0.98576]
[1756337814220,0.95177793,111230.0,111220.0,0.92836]
[1756337814421,0.95177793,111230.0,111220.0,0.92936]
[1756337814620,0.95177793,111230.0,111220.0,0.98676]
[1756337814815,0.27874979,111230.0,111220.0,0.98676]
[1756337815321,0.64874979,111230.0,111220.0,0.98676]
[1756337815822,0.64874979,111230.0,111220.0,0.98776]
[1756337816523,0.64874979,111230.0,111220.0,0.98676]
[1756337817221,0.96177793,111230.0,111220.0,0.98676]
[1756337817518,0.96177793,111230.0,111220.0,0.98576]
[1756337818320,0.59177793,111230.0,111220.0,0.98576]
[1756337818623,0.27874979,111230.0,111220.0,0.98576]
[1756337818821,0.27874979,111230.0,111220.0,0.98676]
[1756337820923,0.27874979,111230.0,111220.0,0.98576]
[1756337822718,0.27874979,111230.0,111220.0,0.98676]
[1756337823123,0.59874979,111230.0,111220.0,0.98776]
[1756337823423,0.53053979,111230.0,111220.0,1.30078814]
[1756337823728,0.0898979,111230.0,111220.0,1.64069414]
[1756337823927,0.1974598,111240.0,111230.0,0.04531]
[1756337824224,0.28028057,111240.0,111230.0,0.35833814]
[1756337824535,0.28028057,111240.0,111230.0,1.18797814]
[1756337824720,0.28028057,111240.0,111230.0,0.87495]
[1756337824915,0.28028057,111240.0,111230.0,1.18797814]
[1756337825825,0.28028057,111240.0,111230.0,0.87495]
[1756337826129,0.28028057,111240.0,111230.0,1.18797814]
[1756337826427,0.28028057,111240.0,111230.0,1.18897814]
[1756337827427,0.28028057,111240.0,111230.0,0.36033814]
[1756337827629,0.28028057,111240.0,111230.0,1.17853814]
[1756337828127,0.28028057,111240.0,111230.0,1.17926814]
[1756337828825,0.28028057,111240.0,111230.0,1.17826814]
[1756337829024,0.28028057,111240.0,111230.0,1.17926814]
[1756337829526,0.28028057,111240.0,111230.0,1.17826814]
[1756337829719,0.28028057,111240.0,111230.0,0.36106814]
[1756337829920,0.28028057,111240.0,111230.0,1.17990814]
[1756337830122,0.28028057,111240.0,111230.0,1.17890814]
[1756337830427,0.28028057,111240.0,111230.0,1.17990814]
[1756337830619,0.28028057,111240.0,111230.0,0.36106814]
[1756337830820,0.28028057,111240.0,111230.0,1.19066814]
[1756337832224,0.24876057,111240.0,111230.0,1.19066814]
[1756337833127,0.28028057,111240.0,111230.0,1.19066814]
[1756337833624,0.28028057,111240.0,111230.0,0.36106814]
[1756337833824,0.59330871,111240.0,111230.0,0.8776]
[1756337834032,0.59330871,111240.0,111230.0,0.02089]
[1756337834227,0.59330871,111240.0,111230.0,0.84972]
[1756337834228,0.95330871,111240.0,111230.0,0.84972]
[1756337834624,1.20330871,111240.0,111230.0,0.02016]
[1756337834824,1.20330871,111240.0,111230.0,0.6358]
[1756337835127,1.20330871,111240.0,111230.0,0.6348]
[1756337835332,1.20330871,111240.0,111230.0,0.01916]
[1756337835827,1.20330871,111240.0,111230.0,0.001]
[1756337836031,0.2532579,111230.0,111220.0,0.8757]
[1756337836224,0.93628604,111230.0,111220.0,0.8756]
[1756337837330,0.93628604,111230.0,111220.0,0.01861]
[1756337837526,0.56628604,111230.0,111220.0,0.8756]
[1756337837730,0.87628604,111230.0,111220.0,0.8756]
[1756337838329,0.89628604,111230.0,111220.0,0.01861]
[1756337838533,0.89628604,111230.0,111220.0,0.84817]
[1756337839039,0.2532579,111230.0,111220.0,0.8756]
[1756337839439,0.0898979,111230.0,111220.0,1.43862814]
[1756337841540,0.0898979,111230.0,111220.0,1.43962814]
[1756337842539,0.0898979,111230.0,111220.0,1.53053414]
[1756337842940,0.0898979,111230.0,111220.0,1.53253414]
[1756337844039,0.0898979,111230.0,111220.0,0.61306814]
[1756337844241,0.2532579,111230.0,111220.0,0.05004]
[1756337844643,0.2532579,111230.0,111220.0,0.36306814]
[1756337844837,0.2532579,111230.0,111220.0,1.19586814]
[1756337845440,0.2532579,111230.0,111220.0,1.19386814]
[1756337845840,0.0898979,111230.0,111220.0,1.19386814]
[1756337846040,0.0898979,111230.0,111220.0,1.19286814]
[1756337846235,0.1510879,111230.0,111220.0,1.19386814]
[1756337846442,0.2532579,111230.0,111220.0,0.36106814]
[1756337846637,0.2532579,111230.0,111220.0,1.19278814]
[1756337846846,0.2532579,111230.0,111220.0,1.19478814]
[1756337847347,0.2532579,111230.0,111220.0,0.88176]
[1756337847745,0.2532579,111230.0,111220.0,1.19478814]
[1756337848140,0.2532579,111230.0,111220.0,1.19378814]
[1756337848141,0.1974679,111230.0,111220.0,1.19378814]
[1756337848349,0.1362779,111230.0,111220.0,1.19378814]
[1756337849049,0.0908979,111230.0,111220.0,1.19178814]
[1756337849750,0.1877379,111230.0,111220.0,1.19178814]
[1756337850951,0.2360379,111230.0,111220.0,1.19178814]
[1756337853347,0.1169879,111230.0,111220.0,1.19178814]
[1756337853952,0.1453279,111230.0,111220.0,1.19178814]
[1756337854452,0.2138279,111230.0,111220.0,1.19178814]
[1756337854950,0.1772679,111230.0,111220.0,1.19178814]
[1756337855654,0.2138279,111230.0,111220.0,1.19178814]
[1756337856251,0.2138279,111230.0,111220.0,0.87876]
[1756337856456,0.2542179,111230.0,111220.0,1.19178814]
[1756337856651,0.2542179,111230.0,111220.0,0.35906814]
[1756337856860,0.2542179,111230.0,111220.0,1.19154814]
[1756337858658,0.2542179,111230.0,111220.0,1.19146814]
[1756337859059,0.0908979,111230.0,111220.0,1.19146814]
[1756337860362,0.11108203,111230.0,111220.0,1.19146814]
[1756337860554,0.0908979,111230.0,111220.0,1.19146814]
[1756337861961,0.0898979,111230.0,111220.0,1.19246814]
[1756337862259,0.0898979,111230.0,111220.0,1.19346814]
[1756337866459,0.0898979,111230.0,111220.0,1.19266814]
[1756337867866,0.1182379,111230.0,111220.0,1.19266814]
[1756337868161,0.1665379,111230.0,111220.0,1.19234814]
[1756337868365,0.90624604,111230.0,111220.0,0.04804]
[1756337868665,0.92637071,111230.0,111220.0,0.7814]
[1756337868865,0.92637071,111230.0,111220.0,0.002]
[1756337868866,1.17637071,111230.0,111220.0,0.002]
[1756337869060,0.83637071,111230.0,111220.0,0.8566]
[1756337869256,1.20637071,111230.0,111220.0,0.8566]
[1756337869463,1.20637071,111230.0,111220.0,0.88579]
[1756337869768,0.52334257,111230.0,111220.0,0.88479]
[1756337870061,0.24140257,111230.0,111220.0,1.19781814]
[1756337870266,0.27534257,111230.0,111220.0,0.36105814]
[1756337870466,0.27534257,111230.0,111220.0,0.88399]
[1756337871466,0.27634257,111230.0,111220.0,0.88399]
[1756337872756,0.27634257,111230.0,111220.0,0.88423]
[1756337873162,0.62634257,111230.0,111220.0,0.88423]
[1756337873667,0.24440257,111230.0,111220.0,0.88423]
[1756337873865,0.27634257,111230.0,111220.0,0.88423]
[1756337874568,0.27634257,111230.0,111220.0,0.04803]
[1756337874765,0.27634257,111230.0,111220.0,0.41927]
[1756337875165,0.13327925,111230.0,111220.0,0.5264]
[1756337877274,0.22317715,111230.0,111220.0,0.5264]
[1756337877871,0.25151715,111230.0,111220.0,0.5264]
[1756337879970,0.22317715,111230.0,111220.0,0.5264]
[1756337880273,0.25138715,111230.0,111220.0,0.83942814]
[1756337880462,0.25138715,111230.0,111220.0,0.15516]
[1756337880662,0.56441529,111230.0,111220.0,0.98684]
[1756337881166,0.25138715,111230.0,111220.0,0.98684]
[1756337881774,0.24938715,111230.0,111220.0,0.98684]
[1756337883175,0.59938715,111230.0,111220.0,0.98684]
[1756337883376,0.18923715,111230.0,111220.0,1.29986814]
[1756337883573,0.22204715,111230.0,111220.0,1.29986814]
[1756337883774,0.25025715,111230.0,111220.0,1.29986814]
[1756337884171,0.24925715,111230.0,111220.0,1.29986814]
[1756337885972,0.24925715,111230.0,111220.0,1.30290814]
[1756337886178,0.05700715,111230.0,111220.0,1.30290814]
[1756337886686,0.02879715,111230.0,111220.0,1.30290814]
[1756337887181,0.18502505,111230.0,111220.0,0.98988]
[1756337888381,0.22074505,111230.0,111220.0,0.98988]
[1756337889588,0.22074505,111230.0,111220.0,0.15516]
[1756337889784,0.22074505,111230.0,111220.0,0.97836]
[1756337890490,0.24895505,111230.0,111220.0,0.15516]
[1756337890679,0.24895505,111230.0,111220.0,0.67916]
[1756337890880,0.92198319,111230.0,111220.0,0.67916]
[1756337891680,0.92298319,111230.0,111220.0,0.67916]
[1756337892179,0.92498319,111230.0,111220.0,0.67916]
[1756337893181,0.92498319,111230.0,111220.0,0.13295]
[1756337893478,0.92498319,111230.0,111220.0,1.00085]
[1756337894888,0.92498319,111230.0,111220.0,1.00073]
[1756337895888,0.22374505,111230.0,111220.0,1.00073]
[1756337896088,0.25195505,111230.0,111220.0,1.00073]
[1756337897181,0.25095505,111230.0,111220.0,1.00073]
[1756337897989,0.25195505,111230.0,111220.0,1.00073]
[1756337898387,0.91498319,111230.0,111220.0,1.00065]
[1756337900893,0.88498319,111230.0,111220.0,1.00065]
[1756337902786,0.88498319,111230.0,111220.0,0.16745]
[1756337902992,0.88498319,111230.0,111220.0,0.7938484]
[1756337903189,0.91193439,111230.0,111220.0,0.04496]
[1756337903390,0.91193439,111230.0,111220.0,0.0264189]
[1756337903586,0.91193439,111230.0,111220.0,0.0022801]
[1756337904291,0.91193439,111230.0,111220.0,1e-07]
[1756337906591,0.91193439,111230.0,111210.0,0.83314]
[1756337906592,0.0899022,111220.0,111210.0,0.00435]
[1756337906786,0.0899184,111200.0,111190.0,2.02224814]
[1756337906987,0.1509384,111200.0,111190.0,2.85458814]
[1756337907187,0.1538484,111200.0,111190.0,3.10458814]
[1756337907495,0.25688175,111200.0,111190.0,3.10458814]
[1756337908196,0.27033427,111200.0,111190.0,1.70912]
[1756337908389,0.58336241,111200.0,111190.0,2.54124]
[1756337908590,0.27033427,111200.0,111190.0,2.5421]
[1756337909589,0.27143427,111200.0,111190.0,2.85512814]
[1756337909995,0.27143427,111200.0,111190.0,2.85712814]
[1756337910193,0.27143427,111200.0,111190.0,2.85912814]
[1756337912599,0.27143427,111200.0,111190.0,2.5461]
[1756337913194,0.27143427,111200.0,111190.0,2.85912814]
[1756337913195,0.18835175,111200.0,111190.0,2.85912814]
[1756337913500,0.26205175,111200.0,111190.0,2.85912814]
[1756337913700,0.2023341,111200.0,111190.0,2.85912814]
[1756337916706,0.15928175,111200.0,111190.0,3.51207628]
[1756337917003,0.0890584,111200.0,111190.0,3.51207628]
[1756337917403,0.0899081,111210.0,111200.0,0.0899114]
[1756337917705,0.0899007,111220.0,111210.0,0.0899034]
[1756337917906,0.0899007,111220.0,111210.0,1.23493154]
[1756337918404,0.0898954,111220.0,111210.0,1.48492684]
[1756337921003,0.1195454,111220.0,111210.0,0.56302814]
[1756337921504,0.1195454,111220.0,111210.0,1.39582814]
[1756337922307,0.1195454,111220.0,111210.0,1.39598814]
[1756337922908,0.1195454,111220.0,111210.0,1.39698814]
[1756337924912,0.1195454,111220.0,111210.0,1.48689264]
[1756337925119,0.1195433,111230.0,111220.0,0.0898964]
[1756337925313,0.1195433,111230.0,111220.0,0.31302814]
[1756337925618,0.1195358,111240.0,111230.0,0.0898883]
[1756337925820,0.1195358,111240.0,111230.0,1.14466814]
[1756337927014,0.1195358,111240.0,111220.0,0.0001]
[1756337927015,0.0898884,111230.0,111220.0,0.0001]
[1756337927213,0.1195384,111230.0,111220.0,1.02474814]
[1756337927915,0.2011684,111230.0,111220.0,1.14542814]
[1756337928117,0.2409584,111230.0,111220.0,1.14542814]
[1756337928422,0.5091484,111230.0,111220.0,0.31302814]
[1756337928811,0.5091484,111230.0,111220.0,1.14530814]
[1756337932326,0.5091484,111230.0,111220.0,0.31302814]
[1756337932631,0.5091484,111230.0,111220.0,0.8318]
[1756337932817,0.1310194,111220.0,111210.0,0.31312814]
[1756337933019,0.2591594,111220.0,111210.0,1.14494814]
[1756337933317,0.2591594,111220.0,111210.0,1.14482814]
[1756337934126,0.2591594,111220.0,111210.0,1.14582814]
[1756337934426,0.2591594,111220.0,111210.0,1.14682814]
[1756337935717,0.0898962,111220.0,111210.0,1.14682814]
[1756337936228,0.1195462,111220.0,111210.0,0.31502814]
[1756337936426,0.1195462,111220.0,111210.0,1.23661244]
[1756337937926,0.1195462,111220.0,111210.0,1.23641244]
[1756337939218,0.1195462,111220.0,111210.0,0.40493244]
[1756337939418,0.1195462,111220.0,111210.0,1.23621244]
[1756337942527,0.1195462,111220.0,111210.0,0.40493244]
[1756337942727,0.1195462,111220.0,111210.0,1.23621244]
[1756337943933,0.0898962,111220.0,111210.0,1.23621244]
[1756337944432,0.1198362,111220.0,111210.0,1.23621244]
[1756337946436,0.09474369,111230.0,111210.0,1.23621244]
[1756337946734,0.16075369,111230.0,111220.0,0.46306814]
[1756337947636,0.16075369,111230.0,111220.0,0.55296444]
[1756337947832,0.0898882,111230.0,111220.0,0.55296444]
[1756337948934,0.0898882,111230.0,111220.0,0.2399363]
[1756337949140,0.0898882,111230.0,111220.0,0.55296444]
[1756337950936,0.2066866,111240.0,111230.0,0.2030084]
[1756337951131,0.1668866,111240.0,111230.0,1.38347654]
[1756337952536,0.0898866,111240.0,111230.0,1.38347654]
[1756337953134,0.0918866,111240.0,111230.0,1.38347654]
[1756337953332,0.1218266,111240.0,111230.0,1.38347654]
[1756337953635,0.1534566,111240.0,111230.0,1.38347654]
[1756337953832,0.1932566,111240.0,111230.0,1.38347654]
[1756337954135,0.1544566,111240.0,111230.0,1.38347654]
[1756337954931,0.0928866,111240.0,111230.0,1.38347654]
[1756337956036,0.2602666,111240.0,111230.0,0.15004]
[1756337956240,0.2602666,111240.0,111230.0,1.29346814]
[1756337958938,0.2602666,111240.0,111230.0,1.38335684]
[1756337959439,0.2602666,111240.0,111230.0,1.38367684]
[1756337961242,0.2602666,111240.0,111230.0,0.46306814]
[1756337961441,0.2602666,111240.0,111230.0,1.29354814]
[1756337961742,0.2602666,111240.0,111230.0,0.15004]
[1756337961934,0.2602666,111240.0,111230.0,1.29346814]
[1756337962441,0.2602666,111240.0,111230.0,1.38335684]
[1756337965042,0.2602666,111240.0,111230.0,1.29346814]
[1756337965743,0.2204666,111240.0,111230.0,1.38335734]
[1756337967345,0.2602666,111240.0,111230.0,1.38335734]
[1756337968144,0.2602666,111240.0,111230.0,1.0703292]
[1756337968339,0.1698866,111240.0,111230.0,1.38335734]
[1756337968938,0.0898772,111250.0,111240.0,0.0898813]
[1756337969145,0.0898772,111250.0,111240.0,0.86414758]
[1756337969341,0.21623067,111260.0,111250.0,0.0898732]
[1756337969647,0.19113067,111260.0,111250.0,1.38203134]
[1756337970041,0.16321067,111260.0,111250.0,1.38203134]
[1756337970440,0.16321067,111260.0,111250.0,1.39465065]
[1756337970643,0.16321067,111260.0,111250.0,1.38203134]
[1756337970644,0.16320597,111260.0,111250.0,1.38203134]
[1756337970854,0.16520597,111260.0,111250.0,1.38203134]
[1756337971045,0.07534077,111260.0,111250.0,1.38203134]
[1756337972446,0.07634077,111260.0,111250.0,1.38203134]
[1756337973046,0.07634077,111260.0,111250.0,1.39483777]
[1756337973652,0.16620597,111260.0,111250.0,1.38203134]
[1756337976754,0.19412597,111260.0,111250.0,0.55111134]
[1756337977051,0.19412597,111260.0,111250.0,1.38191134]
[1756337977454,0.16620597,111260.0,111250.0,1.38191134]
[1756337982060,0.19412597,111260.0,111250.0,1.38135134]
[1756337983060,0.19412597,111260.0,111250.0,0.55111134]
[1756337983261,0.19412597,111260.0,111250.0,1.38135134]
[1756337984056,0.1524652,111260.0,111250.0,1.38135134]
[1756337984265,0.2593852,111260.0,111250.0,0.13311]
[1756337984458,0.5093852,111260.0,111250.0,0.69008]
[1756337984656,0.0898739,111250.0,111240.0,0.39313814]
[1756337984861,0.2562939,111250.0,111240.0,0.43309814]
[1756337985055,0.2562939,111250.0,111240.0,1.26361814]
[1756337985563,0.2562939,111250.0,111240.0,1.26357814]
[1756337985959,0.5062939,111250.0,111240.0,1.18897814]
[1756337986165,0.5062939,111250.0,111240.0,0.85732]
[1756337986465,0.5062939,111250.0,111240.0,0.87242]
[1756337986664,0.5062939,111250.0,111240.0,0.43309814]
[1756337986965,0.5062939,111250.0,111240.0,1.26341814]
[1756337987977,0.5062939,111250.0,111240.0,1.29155814]
[1756337988268,0.4159639,111250.0,111240.0,1.29155814]
[1756337988456,0.4864839,111250.0,111240.0,0.41799814]
[1756337988656,0.4864839,111250.0,111230.0,0.14831]
[1756337988657,0.256302,111240.0,111230.0,0.14831]
[1756337988863,0.256302,111240.0,111230.0,1.29183814]
[1756337989769,0.256302,111240.0,111230.0,1.29283814]
[1756337989970,0.256302,111240.0,111230.0,0.97981]
[1756337990161,0.256302,111240.0,111230.0,1.29483814]
[1756337990666,0.121462,111240.0,111230.0,1.38472824]
[1756337990864,0.1380509,111250.0,111240.0,0.16521]
[1756337991056,0.1380509,111250.0,111240.0,0.47823814]
[1756337991259,0.1696309,111250.0,111240.0,0.47823814]
[1756337991469,0.2085709,111250.0,111240.0,0.47823814]
[1756337991769,0.2283809,111250.0,111240.0,0.47823814]
[1756337992063,0.2283809,111250.0,111240.0,0.44613814]
[1756337992268,0.2283809,111250.0,111240.0,0.47823814]
[1756337992675,0.2563009,111250.0,111240.0,0.47823814]
[1756337995372,0.2563009,111250.0,111240.0,1.30911814]
[1756338000469,0.2563009,111250.0,111240.0,1.30951814]
[1756338000776,0.2563009,111250.0,111240.0,1.30923814]
[1756338001474,0.2563009,111250.0,111240.0,1.31108814]
[1756338001680,1.17932904,111250.0,111240.0,0.90441]
[1756338001873,0.81932904,111250.0,111240.0,0.90441]
[1756338002175,0.5063009,111250.0,111240.0,0.96171]
[1756338002378,0.5072809,111250.0,111240.0,1.31492814]
[1756338003776,0.8672809,111250.0,111240.0,1.31492814]
[1756338003976,0.5072809,111250.0,111240.0,1.31492814]
[1756338006171,0.1380509,111250.0,111240.0,1.31492814]
[1756338006379,0.0898809,111250.0,111240.0,1.40481014]
[1756338006673,0.0898809,111250.0,111240.0,1.65481014]
[1756338006879,0.0548809,111250.0,111240.0,1.96783828]
[1756338007880,0.0899713,111260.0,111250.0,0.2127739]
[1756338008177,0.0899713,111260.0,111250.0,0.52580204]
[1756338008382,0.0899713,111260.0,111250.0,0.43592814]
[1756338008578,0.1697113,111260.0,111250.0,0.43592814]
[1756338009081,0.0899713,111260.0,111250.0,0.43592814]
[1756338009375,0.2558413,111260.0,111250.0,1.26692814]
[1756338009581,0.2568413,111260.0,111250.0,1.26692814]
[1756338010676,0.2568413,111260.0,111250.0,0.9539]
[1756338010878,0.2568413,111260.0,111250.0,1.26692814]
[1756338013781,0.1914013,111260.0,111250.0,1.26692814]
[1756338014486,0.2291713,111260.0,111250.0,1.26692814]
[1756338014882,0.2291713,111260.0,111250.0,0.9539]
[1756338015081,0.2568413,111260.0,111250.0,1.26692814]
[1756338016279,0.2568413,111260.0,111250.0,1.26660814]
[1756338016584,0.2568413,111260.0,111250.0,1.26708814]
[1756338018477,0.2568413,111260.0,111250.0,0.43592814]
[1756338018683,0.2568413,111260.0,111250.0,0.9537]
[1756338019390,0.2568413,111260.0,111250.0,1.26672814]
[1756338020689,0.2568413,111260.0,111250.0,0.1229]
[1756338020885,0.2568413,111260.0,111250.0,0.94545]
[1756338021090,0.2568413,111260.0,111250.0,0.9537]
[1756338022892,0.0919713,111260.0,111250.0,1.35660204]
[1756338024487,0.1717113,111260.0,111250.0,0.43592814]
[1756338024681,0.2094813,111260.0,111250.0,0.11973]
[1756338025189,0.2094813,111260.0,111250.0,0.95374]
[1756338027092,1.10250944,111260.0,111250.0,0.95354]
[1756338027591,0.77250944,111260.0,111250.0,0.95354]
[1756338027792,0.4594813,111260.0,111250.0,0.95354]
[1756338027986,0.4594813,111260.0,111250.0,0.1229]
[1756338028188,0.77250944,111260.0,111250.0,0.85704]
[1756338028390,0.77250944,111260.0,111250.0,0.9004]
[1756338028585,0.4594813,111260.0,111250.0,0.90548]
[1756338029595,0.4594813,111260.0,111250.0,1.21850814]
[1756338029888,0.4594813,111260.0,111250.0,0.90548]
[1756338032097,0.2075439,111250.0,111240.0,0.0001]
[1756338032299,0.86057204,111250.0,111240.0,0.90249]
[1756338032593,0.52057204,111250.0,111240.0,0.90249]
[1756338032798,0.87057204,111250.0,111240.0,0.90249]
[1756338032988,0.2075439,111250.0,111240.0,0.90249]
[1756338033794,0.5575439,111250.0,111240.0,0.90249]
[1756338034294,0.87057204,111250.0,111240.0,0.90249]
[1756338034495,0.52057204,111250.0,111240.0,0.90249]
[1756338035287,0.85057204,111250.0,111240.0,0.90249]
[1756338036697,0.85157204,111250.0,111240.0,0.90249]
[1756338037086,0.87960628,111250.0,111240.0,0.90249]
[1756338037292,0.85257204,111250.0,111240.0,0.90249]
[1756338037793,0.85257204,111250.0,111240.0,0.90873]
[1756338038791,0.85257204,111250.0,111240.0,0.90556]
[1756338038994,0.85257204,111250.0,111240.0,0.90873]
[1756338039499,0.87958806,111250.0,111240.0,0.06685]
[1756338039800,0.56655992,111250.0,111240.0,0.90869]
[1756338039996,0.87958806,111250.0,111240.0,0.90869]
[1756338040503,0.87958232,111250.0,111240.0,0.90869]
[1756338040694,0.85257204,111250.0,111240.0,0.90869]
[1756338041199,0.87958232,111250.0,111240.0,0.90869]
[1756338044403,0.87954713,111250.0,111240.0,0.90869]
[1756338044697,1.12954713,111250.0,111240.0,1e-07]
[1756338044896,1.09790713,111250.0,111240.0,1e-07]
[1756338045098,1.05845713,111250.0,111240.0,1e-07]
[1756338045303,1.03148204,111250.0,111240.0,1e-07]
[1756338045501,1.01148204,111250.0,111240.0,1e-07]
[1756338045700,1.14790401,111250.0,111240.0,0.0453601]
[1756338045903,1.14790401,111250.0,111240.0,0.0402801]
[1756338046100,1.17954401,111250.0,111240.0,0.0453601]
[1756338047106,0.86651587,111250.0,111240.0,0.0453601]
[1756338047305,1.17954401,111250.0,111240.0,0.0453601]
[1756338047507,1.17954401,111250.0,111240.0,0.0402801]
[1756338051908,1.17954401,111250.0,111240.0,0.0031701]
[1756338052810,1.22751401,111250.0,111240.0,0.0328601]
[1756338053005,1.12665401,111250.0,111230.0,0.90623]
[1756338053210,0.255522,111240.0,111230.0,0.95554]
[1756338053506,0.635522,111240.0,111230.0,0.95544]
[1756338053811,0.089882,111240.0,111230.0,1.60835824]
[1756338054007,0.0908793,111250.0,111240.0,0.200912]
[1756338054311,0.0898793,111250.0,111240.0,0.51394014]
[1756338054603,0.0898793,111250.0,111240.0,0.76394014]
[1756338054810,0.0898793,111250.0,111240.0,0.67405814]
[1756338056115,0.0898793,111250.0,111240.0,0.76394014]
[1756338056320,0.0527693,111250.0,111240.0,1.07696828]
[1756338056612,0.0001,111260.0,111250.0,0.0483]
[1756338056613,0.0899658,111260.0,111250.0,0.0483]
[1756338057013,0.1142758,111260.0,111250.0,0.36132814]
[1756338057206,0.1440458,111260.0,111250.0,0.36132814]
[1756338057819,0.1673158,111260.0,111250.0,0.36132814]
[1756338058111,0.2576058,111260.0,111250.0,0.88362]
[1756338058309,0.2576058,111260.0,111250.0,0.85405]
[1756338058510,0.89063394,111260.0,111250.0,0.88374]
[1756338058709,0.89063394,111260.0,111250.0,0.85405]
[1756338059413,0.2576058,111260.0,111250.0,1.19605814]
[1756338059915,0.0919658,111260.0,111250.0,1.44605814]
[1756338060117,0.1219158,111260.0,111250.0,1.44605814]
[1756338060420,0.2595058,111260.0,111250.0,1.44701814]
[1756338062212,0.92253394,111260.0,111250.0,0.88391]
[1756338062417,0.92253394,111260.0,111250.0,0.85493]
[1756338062618,0.2595058,111260.0,111250.0,0.88391]
[1756338064107,0.5995058,111260.0,111250.0,0.88391]
[1756338064312,0.2595058,111260.0,111250.0,0.85481]
[1756338064716,0.6095058,111260.0,111250.0,0.85481]
[1756338064917,0.6095058,111260.0,111250.0,0.88379]
[1756338067522,0.92253394,111260.0,111250.0,0.85481]
[1756338067717,0.6095058,111260.0,111250.0,0.85481]
[1756338067918,0.6095058,111260.0,111250.0,0.01861]
[1756338068123,0.92253394,111260.0,111250.0,0.85461]
[1756338069421,0.92253394,111260.0,111250.0,0.01861]
[1756338069618,0.2574139,111250.0,111240.0,0.04713]
[1756338069917,0.57044204,111250.0,111240.0,0.88347]
[1756338070316,0.2574139,111250.0,111240.0,0.88347]
[1756338070511,0.2574139,111250.0,111240.0,0.04703]
[1756338070719,0.225622,111240.0,111230.0,0.04713]
[1756338071022,0.257422,111240.0,111230.0,0.88379]
[1756338075624,0.257422,111240.0,111230.0,0.04703]
[1756338075823,0.57045014,111240.0,111230.0,0.88547]
[1756338076030,0.257422,111240.0,111230.0,0.88547]
[1756338076329,0.257422,111240.0,111230.0,1.19849814]
[1756338076822,0.258422,111240.0,111230.0,1.19849814]
[1756338077233,0.168422,111240.0,111230.0,1.19849814]
[1756338077431,0.115662,111240.0,111230.0,1.19849814]
[1756338077820,0.090882,111240.0,111230.0,0.88547]
[1756338078026,0.239092,111240.0,111230.0,1.19849814]
[1756338078326,0.238092,111240.0,111230.0,1.19849814]
[1756338078527,0.238092,111240.0,111230.0,0.88547]
[1756338078727,0.167422,111240.0,111230.0,1.19849814]
[1756338078928,0.238092,111240.0,111230.0,1.19849814]
[1756338080335,0.257422,111240.0,111230.0,1.19793814]
[1756338080635,0.257422,111240.0,111230.0,0.88491]
[1756338081531,0.257422,111240.0,111230.0,1.19793814]
[1756338081928,0.257422,111240.0,111230.0,0.36005814]
[1756338082130,0.257422,111240.0,111230.0,0.88483]
[1756338083940,0.257422,111240.0,111230.0,1.19785814]
[1756338083941,0.627422,111240.0,111230.0,1.19785814]
[1756338084537,0.627422,111240.0,111230.0,0.88483]
[1756338084842,0.627422,111240.0,111230.0,1.19785814]
[1756338086330,0.556752,111240.0,111230.0,1.19785814]
[1756338086536,0.537422,111240.0,111230.0,1.19785814]
[1756338087742,0.167422,111240.0,111230.0,0.88483]
[1756338087944,0.257422,111240.0,111230.0,1.19785814]
[1756338088836,0.260522,111240.0,111230.0,1.19785814]
[1756338089344,0.260522,111240.0,111230.0,1.19885814]
[1756338089644,0.260522,111240.0,111230.0,1.20085814]
[1756338090542,0.260522,111240.0,111230.0,0.88783]
[1756338092541,0.260522,111240.0,111230.0,1.20085814]
[1756338092739,0.089882,111240.0,111230.0,1.19885814]
[1756338092938,0.089882,111240.0,111230.0,1.19785814]
[1756338093343,0.118332,111240.0,111230.0,1.19785814]
[1756338093644,0.089882,111240.0,111230.0,1.2247201]
[1756338093944,0.089882,111240.0,111230.0,1.53874824]
[1756338094548,0.089882,111240.0,111230.0,1.54074824]
[1756338094741,0.089882,111240.0,111230.0,0.30003]
[1756338095045,0.089882,111240.0,111230.0,1.45217814]
[1756338095347,0.089882,111240.0,111230.0,1.13915]
[1756338095546,0.089882,111240.0,111230.0,1.45217814]
[1756338096152,0.089882,111240.0,111230.0,0.61305814]
[1756338096449,0.239262,111240.0,111230.0,1.45245814]
[1756338098145,0.089882,111240.0,111230.0,1.54234824]
[1756338100347,0.089882,111240.0,111230.0,1.13943]
[1756338100546,0.118332,111240.0,111230.0,1.45245814]
[1756338101845,0.089882,111240.0,111230.0,1.54234884]
[1756338102747,0.118332,111240.0,111230.0,1.2293207]
[1756338102948,0.118332,111240.0,111230.0,1.54234884]
[1756338103349,0.089882,111240.0,111230.0,1.54234884]
[1756338104753,0.16388909,111250.0,111240.0,0.05987]
[1756338105051,0.16388909,111250.0,111240.0,0.37289814]
[1756338105756,0.16388909,111250.0,111240.0,0.05987]
[1756338106052,0.16388909,111250.0,111240.0,0.37289814]